[Event "Early-Titled-Tuesday-Blitz-February-20-2024"]
[Site "Chess.com"]
[Date "2024.02.20"]
[Round "11"]
[White "Shield12"]
[Black "ContrVersia"]
[Result "1/2-1/2"]
[WhiteElo "2963"]
[BlackElo "2843"]
[TimeControl "180+1"]
[EndTime "10:09:57 PST"]
[Termination "Game drawn by repetition"]

1. e4 {[%clk 0:03:00.9]} 1... c5 {[%clk 0:02:57.3]} 2. Nf3 {[%clk 0:03:01.4]}
2... d6 {[%clk 0:02:55.6]} 3. d4 {[%clk 0:03:01.6]} 3... cxd4 {[%clk 0:02:55.9]}
4. Nxd4 {[%clk 0:03:00.8]} 4... Nf6 {[%clk 0:02:55.9]} 5. Nc3 {[%clk 0:03:00.8]}
5... Nc6 {[%clk 0:02:56]} 6. Bg5 {[%clk 0:03:00]} 6... e6 {[%clk 0:02:55.5]} 7.
Qd2 {[%clk 0:03:00.2]} 7... a6 {[%clk 0:02:53.8]} 8. O-O-O {[%clk 0:02:59.8]}
8... Bd7 {[%clk 0:02:53.5]} 9. f4 {[%clk 0:02:59.5]} 9... b5 {[%clk 0:02:53.4]}
10. Bxf6 {[%clk 0:02:59.5]} 10... gxf6 {[%clk 0:02:53.6]} 11. f5 {[%clk
0:03:00.1]} 11... Qb6 {[%clk 0:02:46.5]} 12. Nxc6 {[%clk 0:02:58.4]} 12... Bxc6
{[%clk 0:02:46.1]} 13. fxe6 {[%clk 0:02:58.1]} 13... fxe6 {[%clk 0:02:45.9]} 14.
Bd3 {[%clk 0:02:58.5]} 14... Qc5 {[%clk 0:02:40.4]} 15. Kb1 {[%clk 0:02:56.8]}
15... O-O-O {[%clk 0:02:35]} 16. Rhf1 {[%clk 0:02:54.9]} 16... Be7 {[%clk
0:02:33.6]} 17. Ne2 {[%clk 0:02:53.7]} 17... Kb8 {[%clk 0:02:28.2]} 18. Nf4
{[%clk 0:02:51.2]} 18... Bd7 {[%clk 0:02:28.3]} 19. Be2 {[%clk 0:02:48.1]} 19...
Rhg8 {[%clk 0:02:21.1]} 20. g3 {[%clk 0:02:48.1]} 20... Rc8 {[%clk 0:02:20.4]}
21. c3 {[%clk 0:02:47.5]} 21... Qe5 {[%clk 0:02:19.2]} 22. Bf3 {[%clk
0:02:47.1]} 22... Bc6 {[%clk 0:02:10.8]} 23. Nd3 {[%clk 0:02:46.4]} 23... Qg5
{[%clk 0:01:59.7]} 24. Qf2 {[%clk 0:02:45.8]} 24... Bb7 {[%clk 0:01:45.5]} 25.
Rfe1 {[%clk 0:02:43.8]} 25... Rc7 {[%clk 0:01:42.9]} 26. Qb6 {[%clk 0:02:38.7]}
26... Rc6 {[%clk 0:01:40.5]} 27. Qf2 {[%clk 0:02:37.8]} 27... Rc7 {[%clk
0:01:40.2]} 28. a3 {[%clk 0:02:36.3]} 28... Rf8 {[%clk 0:01:27.4]} 29. Qc2
{[%clk 0:02:35.9]} 29... f5 {[%clk 0:01:24.7]} 30. Nf4 {[%clk 0:02:33.4]} 30...
Qh6 {[%clk 0:01:19.7]} 31. Qb3 {[%clk 0:02:18.7]} 31... fxe4 {[%clk 0:01:11]}
32. Bxe4 {[%clk 0:02:18.1]} 32... d5 {[%clk 0:01:07.9]} 33. Bg2 {[%clk
0:02:09.8]} 33... Bc8 {[%clk 0:01:07.7]} 34. Bxd5 {[%clk 0:02:00.6]} 34... exd5
{[%clk 0:01:04.3]} 35. Nxd5 {[%clk 0:02:01.5]} 35... Be6 {[%clk 0:00:58.1]} 36.
c4 {[%clk 0:01:51.1]} 36... Bxd5 {[%clk 0:00:42.2]} 37. Rxd5 {[%clk 0:01:48.9]}
37... Qg6+ {[%clk 0:00:21.3]} 38. Ka2 {[%clk 0:01:47.7]} 38... Rf2 {[%clk
0:00:20.7]} 39. cxb5 {[%clk 0:01:44.8]} 39... Qc2 {[%clk 0:00:18.1]} 40. bxa6+
{[%clk 0:01:41.6]} 40... Qxb3+ {[%clk 0:00:16.8]} 41. Kxb3 {[%clk 0:01:42.5]}
41... Bf6 {[%clk 0:00:13]} 42. Rb5+ {[%clk 0:01:03.5]} 42... Ka7 {[%clk
0:00:12.7]} 43. Ka4 {[%clk 0:01:04.1]} 43... Rxb2 {[%clk 0:00:12.4]} 44. Rxb2
{[%clk 0:00:59.1]} 44... Bxb2 {[%clk 0:00:13.3]} 45. Re6 {[%clk 0:00:59]} 45...
Bd4 {[%clk 0:00:12.8]} 46. Kb5 {[%clk 0:00:54]} 46... Rc5+ {[%clk 0:00:12.9]}
47. Kb4 {[%clk 0:00:54.5]} 47... Rc7 {[%clk 0:00:12.8]} 48. a4 {[%clk
0:00:52.9]} 48... Bg1 {[%clk 0:00:11]} 49. h3 {[%clk 0:00:52.2]} 49... Bf2
{[%clk 0:00:10.7]} 50. g4 {[%clk 0:00:52.8]} 50... Bd4 {[%clk 0:00:09.8]} 51. g5
{[%clk 0:00:52.2]} 51... Bc3+ {[%clk 0:00:08.3]} 52. Kb5 {[%clk 0:00:51.5]}
52... Bd2 {[%clk 0:00:08.4]} 53. h4 {[%clk 0:00:49.7]} 53... Bc3 {[%clk
0:00:04.9]} 54. Rd6 {[%clk 0:00:42.6]} 54... Be1 {[%clk 0:00:04.5]} 55. h5
{[%clk 0:00:38.3]} 55... Bf2 {[%clk 0:00:04.6]} 56. Rf6 {[%clk 0:00:31]} 56...
Be3 {[%clk 0:00:04.1]} 57. Rf5 {[%clk 0:00:30.3]} 57... Rg7 {[%clk 0:00:03.1]}
58. g6 {[%clk 0:00:24.6]} 58... hxg6 {[%clk 0:00:04]} 59. hxg6 {[%clk
0:00:25.5]} 59... Rxg6 {[%clk 0:00:03.6]} 60. Rf7+ {[%clk 0:00:24.7]} 60... Ka8
{[%clk 0:00:03.9]} 61. Rf8+ {[%clk 0:00:25]} 61... Ka7 {[%clk 0:00:04.3]} 62.
Rf7+ {[%clk 0:00:25.2]} 62... Ka8 {[%clk 0:00:04.4]} 63. Rf8+ {[%clk 0:00:26.1]}
63... Ka7 {[%clk 0:00:04.8]} 64. Rf7+ {[%clk 0:00:26.7]} 1/2-1/2

[Event "Early-Titled-Tuesday-Blitz-February-20-2024"]
[Site "Chess.com"]
[Date "2024.02.20"]
[Round "11"]
[White "Larina_Maria"]
[Black "Cheer_Down"]
[Result "0-1"]
[WhiteElo "2287"]
[BlackElo "2425"]
[TimeControl "180+1"]
[EndTime "10:09:57 PST"]
[Termination "Cheer_Down won on time"]

1. e4 {[%clk 0:02:59.1]} 1... e5 {[%clk 0:03:00.1]} 2. Nf3 {[%clk 0:02:58.8]}
2... Nc6 {[%clk 0:03:00.2]} 3. Nc3 {[%clk 0:02:59]} 3... Nf6 {[%clk 0:03:00]} 4.
Bb5 {[%clk 0:02:59.3]} 4... Bc5 {[%clk 0:02:58.9]} 5. O-O {[%clk 0:02:57.8]}
5... O-O {[%clk 0:02:56.6]} 6. Nxe5 {[%clk 0:02:57.5]} 6... Nxe5 {[%clk
0:02:55.1]} 7. d4 {[%clk 0:02:57.6]} 7... Bd6 {[%clk 0:02:55.4]} 8. f4 {[%clk
0:02:57.6]} 8... Nc6 {[%clk 0:02:54.9]} 9. e5 {[%clk 0:02:57.5]} 9... Bb4 {[%clk
0:02:54.9]} 10. d5 {[%clk 0:02:49.9]} 10... Ne8 {[%clk 0:02:21.7]} 11. dxc6
{[%clk 0:02:48.2]} 11... bxc6 {[%clk 0:02:21.6]} 12. Bd3 {[%clk 0:02:47.3]}
12... d5 {[%clk 0:02:01.3]} 13. f5 {[%clk 0:02:44]} 13... Qh4 {[%clk 0:01:57.8]}
14. Rf4 {[%clk 0:02:37.5]} 14... Bc5+ {[%clk 0:01:57.1]} 15. Kh1 {[%clk
0:02:35.1]} 15... Qe7 {[%clk 0:01:52.1]} 16. f6 {[%clk 0:02:12.4]} 16... Qxe5
{[%clk 0:01:50.9]} 17. fxg7 {[%clk 0:01:20.8]} 17... Nxg7 {[%clk 0:01:50.9]} 18.
Bd2 {[%clk 0:01:18.9]} 18... Rb8 {[%clk 0:01:11.3]} 19. Qf3 {[%clk 0:01:04.5]}
19... Rb4 {[%clk 0:01:09.9]} 20. Rf6 {[%clk 0:00:58.3]} 20... Bg4 {[%clk
0:01:02.3]} 21. Qf1 {[%clk 0:00:54.8]} 21... Bd6 {[%clk 0:00:52.3]} 22. Rh6
{[%clk 0:00:45.9]} 22... f5 {[%clk 0:00:36.7]} 23. Nd1 {[%clk 0:00:41]} 23...
Rf4 {[%clk 0:00:25.1]} 24. Bxf4 {[%clk 0:00:39.4]} 24... Qxf4 {[%clk 0:00:25.1]}
25. Qxf4 {[%clk 0:00:36.4]} 25... Bxf4 {[%clk 0:00:26]} 26. Rxc6 {[%clk
0:00:36.6]} 26... Re8 {[%clk 0:00:24.9]} 27. Nf2 {[%clk 0:00:34.1]} 27... Bh5
{[%clk 0:00:24.3]} 28. Nh3 {[%clk 0:00:28.5]} 28... Bd6 {[%clk 0:00:23.8]} 29.
Kg1 {[%clk 0:00:24.1]} 29... Bg4 {[%clk 0:00:23.5]} 30. Nf2 {[%clk 0:00:23.2]}
30... Bh5 {[%clk 0:00:23.5]} 31. Kf1 {[%clk 0:00:20.5]} 31... Rb8 {[%clk
0:00:22]} 32. b3 {[%clk 0:00:19.9]} 32... Ne6 {[%clk 0:00:22.5]} 33. c3 {[%clk
0:00:17.8]} 33... Bg6 {[%clk 0:00:20]} 34. Nh3 {[%clk 0:00:16.8]} 34... Nc5
{[%clk 0:00:19.7]} 35. Be2 {[%clk 0:00:15.1]} 35... Ne4 {[%clk 0:00:19.9]} 36.
Ng5 {[%clk 0:00:11.7]} 36... Nxg5 {[%clk 0:00:18.5]} 37. Rd1 {[%clk 0:00:09.6]}
37... Bf7 {[%clk 0:00:17.1]} 38. h4 {[%clk 0:00:08.5]} 38... Ne4 {[%clk
0:00:17.2]} 39. Bf3 {[%clk 0:00:08.2]} 39... Rb6 {[%clk 0:00:15.2]} 40. Rxb6
{[%clk 0:00:07]} 40... axb6 {[%clk 0:00:16.1]} 41. g4 {[%clk 0:00:06]} 41...
Ng3+ {[%clk 0:00:12]} 42. Kf2 {[%clk 0:00:06.2]} 42... fxg4 {[%clk 0:00:11.1]}
43. Bxg4 {[%clk 0:00:05.2]} 43... Ne4+ {[%clk 0:00:11]} 44. Ke3 {[%clk
0:00:04.1]} 44... Nxc3 {[%clk 0:00:09.4]} 45. Rf1 {[%clk 0:00:04.1]} 45... Ne4
{[%clk 0:00:08.8]} 46. Bf5 {[%clk 0:00:03.8]} 46... Bc5+ {[%clk 0:00:08.2]} 47.
Kd3 {[%clk 0:00:03.1]} 47... Bg6 {[%clk 0:00:07.2]} 48. Bxg6 {[%clk 0:00:02.6]}
48... hxg6 {[%clk 0:00:07.3]} 49. Rf4 {[%clk 0:00:02.2]} 49... Kg7 {[%clk
0:00:07.3]} 50. a4 {[%clk 0:00:01.7]} 50... Nf6 {[%clk 0:00:06.9]} 0-1

[Event "Early-Titled-Tuesday-Blitz-February-20-2024"]
[Site "Chess.com"]
[Date "2024.02.20"]
[Round "11"]
[White "Rozhkov_V"]
[Black "AttackSparrow"]
[Result "0-1"]
[WhiteElo "2446"]
[BlackElo "2636"]
[TimeControl "180+1"]
[EndTime "10:09:58 PST"]
[Termination "AttackSparrow won on time"]

1. c4 {[%clk 0:02:59.9]} 1... e6 {[%clk 0:03:00.1]} 2. d4 {[%clk 0:02:54.2]}
2... d5 {[%clk 0:03:01]} 3. cxd5 {[%clk 0:02:54.1]} 3... exd5 {[%clk 0:03:01.2]}
4. Nc3 {[%clk 0:02:54.6]} 4... Nf6 {[%clk 0:03:01.7]} 5. Bg5 {[%clk 0:02:54.4]}
5... Bb4 {[%clk 0:03:02.3]} 6. Nf3 {[%clk 0:02:48.6]} 6... h6 {[%clk 0:03:02.6]}
7. Bxf6 {[%clk 0:02:43.2]} 7... Qxf6 {[%clk 0:03:02.5]} 8. e3 {[%clk 0:02:42.9]}
8... c6 {[%clk 0:02:59.4]} 9. Ne5 {[%clk 0:02:38.1]} 9... Nd7 {[%clk 0:02:55.9]}
10. Nd3 {[%clk 0:02:35.7]} 10... Bd6 {[%clk 0:02:54.4]} 11. Be2 {[%clk
0:02:32.9]} 11... O-O {[%clk 0:02:52.5]} 12. O-O {[%clk 0:02:31.4]} 12... Re8
{[%clk 0:02:52.7]} 13. b4 {[%clk 0:02:24.3]} 13... Nb6 {[%clk 0:02:24.6]} 14.
Nc5 {[%clk 0:02:20.6]} 14... a5 {[%clk 0:01:51]} 15. a3 {[%clk 0:02:11.7]} 15...
Ra7 {[%clk 0:01:37.7]} 16. Rb1 {[%clk 0:02:04.6]} 16... axb4 {[%clk 0:01:34]}
17. axb4 {[%clk 0:02:05.5]} 17... Bf5 {[%clk 0:01:33.5]} 18. Ra1 {[%clk
0:02:02.7]} 18... Rea8 {[%clk 0:01:32]} 19. Rxa7 {[%clk 0:02:00.7]} 19... Rxa7
{[%clk 0:01:32.9]} 20. Qb3 {[%clk 0:01:57.5]} 20... Qe7 {[%clk 0:01:26.4]} 21.
Rc1 {[%clk 0:01:23.5]} 21... h5 {[%clk 0:01:25.4]} 22. Qb2 {[%clk 0:01:14.1]}
22... h4 {[%clk 0:01:21.7]} 23. b5 {[%clk 0:01:01.2]} 23... Bxc5 {[%clk
0:00:53]} 24. dxc5 {[%clk 0:01:00.5]} 24... Nd7 {[%clk 0:00:53.7]} 25. bxc6
{[%clk 0:00:58]} 25... bxc6 {[%clk 0:00:54.6]} 26. Qb4 {[%clk 0:00:31.8]} 26...
h3 {[%clk 0:00:44.3]} 27. g4 {[%clk 0:00:27.5]} 27... Be6 {[%clk 0:00:40.7]} 28.
Na4 {[%clk 0:00:22.6]} 28... Qf8 {[%clk 0:00:23.2]} 29. Nb6 {[%clk 0:00:19.5]}
29... Rb7 {[%clk 0:00:22.3]} 30. Qa5 {[%clk 0:00:11.8]} 30... Qb8 {[%clk
0:00:16.7]} 31. Nxd7 {[%clk 0:00:10.7]} 31... Rxd7 {[%clk 0:00:17.6]} 32. Ra1
{[%clk 0:00:09.3]} 32... Rb7 {[%clk 0:00:14.9]} 33. f3 {[%clk 0:00:08.6]} 33...
Rb2 {[%clk 0:00:13.5]} 34. Qe1 {[%clk 0:00:04.4]} 34... g6 {[%clk 0:00:11.5]}
35. f4 {[%clk 0:00:04.8]} 35... Qb4 {[%clk 0:00:11.3]} 36. Kf2 {[%clk 0:00:05]}
36... Qxc5 {[%clk 0:00:11.1]} 37. Rc1 {[%clk 0:00:05.1]} 37... Qb6 {[%clk
0:00:09.8]} 38. Qc3 {[%clk 0:00:05.4]} 38... Bxg4 {[%clk 0:00:09.1]} 39. Rc2
{[%clk 0:00:04.1]} 39... Rxc2 {[%clk 0:00:09.2]} 40. Qxc2 {[%clk 0:00:05]} 40...
Bxe2 {[%clk 0:00:08.7]} 41. Kxe2 {[%clk 0:00:05.6]} 41... d4 {[%clk 0:00:06.5]}
42. exd4 {[%clk 0:00:05.2]} 42... Qxd4 {[%clk 0:00:07.4]} 43. Qxc6 {[%clk
0:00:05.6]} 43... Qb2+ {[%clk 0:00:05.6]} 44. Ke3 {[%clk 0:00:03.9]} 44... Qxh2
{[%clk 0:00:05.6]} 45. Qc8+ {[%clk 0:00:02.9]} 45... Kg7 {[%clk 0:00:04.2]} 46.
f5 {[%clk 0:00:03.8]} 46... Qg3+ {[%clk 0:00:03.9]} 47. Ke2 {[%clk 0:00:04.1]}
47... Qg4+ {[%clk 0:00:04.3]} 48. Ke1 {[%clk 0:00:04.2]} 48... Qxf5 {[%clk
0:00:05.2]} 49. Qc3+ {[%clk 0:00:04.5]} 49... Kh7 {[%clk 0:00:05.2]} 50. Qg3
{[%clk 0:00:04.5]} 50... Qe6+ {[%clk 0:00:05.3]} 51. Kd2 {[%clk 0:00:04.6]}
51... Qf5 {[%clk 0:00:06.2]} 52. Qh4+ {[%clk 0:00:04.9]} 52... Kg7 {[%clk
0:00:06]} 53. Qd4+ {[%clk 0:00:04.7]} 53... Qf6 {[%clk 0:00:06.7]} 54. Qd5
{[%clk 0:00:02.4]} 54... Qf2+ {[%clk 0:00:06.2]} 55. Kc3 {[%clk 0:00:02.1]}
55... h2 {[%clk 0:00:06.3]} 56. Qe5+ {[%clk 0:00:01.7]} 56... Qf6 {[%clk
0:00:06.8]} 0-1

[Event "Early-Titled-Tuesday-Blitz-February-20-2024"]
[Site "Chess.com"]
[Date "2024.02.20"]
[Round "11"]
[White "guillembaches"]
[Black "margarita_2703"]
[Result "1-0"]
[WhiteElo "2520"]
[BlackElo "2390"]
[TimeControl "180+1"]
[EndTime "10:09:59 PST"]
[Termination "guillembaches won by checkmate"]

1. d4 {[%clk 0:03:00.9]} 1... d5 {[%clk 0:02:59.8]} 2. Nf3 {[%clk 0:03:01.2]}
2... Nf6 {[%clk 0:02:59.8]} 3. c4 {[%clk 0:03:01.3]} 3... e6 {[%clk 0:02:59.8]}
4. cxd5 {[%clk 0:03:00.8]} 4... exd5 {[%clk 0:03:00.7]} 5. Qc2 {[%clk
0:03:01.4]} 5... h6 {[%clk 0:02:51.8]} 6. Nc3 {[%clk 0:02:57.6]} 6... Bd6 {[%clk
0:02:48.9]} 7. Nb5 {[%clk 0:02:56.7]} 7... O-O {[%clk 0:02:43.7]} 8. Nxd6 {[%clk
0:02:53.9]} 8... Qxd6 {[%clk 0:02:42.8]} 9. g3 {[%clk 0:02:45.7]} 9... Na6
{[%clk 0:02:42.7]} 10. a3 {[%clk 0:02:44.8]} 10... c5 {[%clk 0:02:39.3]} 11. Bg2
{[%clk 0:02:38.1]} 11... b6 {[%clk 0:02:38.6]} 12. Bf4 {[%clk 0:02:35.3]} 12...
Qe7 {[%clk 0:02:38.4]} 13. dxc5 {[%clk 0:02:30.9]} 13... Nxc5 {[%clk 0:02:33.3]}
14. O-O {[%clk 0:02:29.9]} 14... Ba6 {[%clk 0:02:28.4]} 15. Nd4 {[%clk
0:02:28.6]} 15... Rac8 {[%clk 0:02:25.7]} 16. Qd1 {[%clk 0:02:25.3]} 16... Rfe8
{[%clk 0:02:21]} 17. Re1 {[%clk 0:02:24.5]} 17... Nce4 {[%clk 0:02:19.5]} 18.
Rc1 {[%clk 0:02:18.4]} 18... Rxc1 {[%clk 0:02:18.4]} 19. Bxc1 {[%clk 0:02:09.8]}
19... Rc8 {[%clk 0:02:19.3]} 20. h3 {[%clk 0:02:04]} 20... Qc5 {[%clk
0:02:08.9]} 21. Be3 {[%clk 0:02:02]} 21... Qc7 {[%clk 0:02:05.6]} 22. Qb1 {[%clk
0:01:58.4]} 22... Qd7 {[%clk 0:02:03]} 23. Rc1 {[%clk 0:01:55.2]} 23... h5
{[%clk 0:01:57.5]} 24. Rxc8+ {[%clk 0:01:51.7]} 24... Qxc8 {[%clk 0:01:57.3]}
25. Qc1 {[%clk 0:01:51.4]} 25... Qxc1+ {[%clk 0:01:55.8]} 26. Bxc1 {[%clk
0:01:51.5]} 26... g6 {[%clk 0:01:56.7]} 27. Kf1 {[%clk 0:01:30.4]} 27... Kf8
{[%clk 0:01:51.5]} 28. Nc6 {[%clk 0:01:27.1]} 28... Ke8 {[%clk 0:01:41.1]} 29.
Nxa7 {[%clk 0:01:26.5]} 29... Kd7 {[%clk 0:01:40.8]} 30. a4 {[%clk 0:01:19.5]}
30... Kc7 {[%clk 0:01:40.9]} 31. Be3 {[%clk 0:01:12.1]} 31... Kb7 {[%clk
0:01:39.6]} 32. Nb5 {[%clk 0:01:12.3]} 32... Bxb5 {[%clk 0:01:40.1]} 33. axb5
{[%clk 0:01:12.4]} 33... Nd6 {[%clk 0:01:38]} 34. Bd4 {[%clk 0:01:12.1]} 34...
Nfe4 {[%clk 0:01:37.9]} 35. g4 {[%clk 0:00:56.4]} 35... h4 {[%clk 0:01:36.1]}
36. f3 {[%clk 0:00:50.6]} 36... Ng3+ {[%clk 0:01:29.5]} 37. Ke1 {[%clk
0:00:49.8]} 37... Nxb5 {[%clk 0:01:30.4]} 38. Bf6 {[%clk 0:00:49.3]} 38... g5
{[%clk 0:01:04.6]} 39. Bxg5 {[%clk 0:00:46.9]} 39... f5 {[%clk 0:01:04.8]} 40.
Bxh4 {[%clk 0:00:43.7]} 40... f4 {[%clk 0:01:05.2]} 41. Bxg3 {[%clk 0:00:32.2]}
41... fxg3 {[%clk 0:01:04.6]} 42. g5 {[%clk 0:00:32.3]} 42... Nd6 {[%clk
0:01:01.1]} 43. g6 {[%clk 0:00:31.9]} 43... Nf5 {[%clk 0:01:00.9]} 44. h4 {[%clk
0:00:31.8]} 44... Kc7 {[%clk 0:01:00.5]} 45. Bh3 {[%clk 0:00:30.8]} 45... Nh6
{[%clk 0:00:43.7]} 46. Kf1 {[%clk 0:00:27.9]} 46... Kd6 {[%clk 0:00:39.7]} 47.
Kg2 {[%clk 0:00:28.1]} 47... Ke7 {[%clk 0:00:40]} 48. Kxg3 {[%clk 0:00:26]}
48... Kf6 {[%clk 0:00:40.4]} 49. h5 {[%clk 0:00:25.8]} 49... Kg5 {[%clk
0:00:40.5]} 50. Bg4 {[%clk 0:00:25.6]} 50... Ng8 {[%clk 0:00:39.7]} 51. f4+
{[%clk 0:00:24]} 51... Kh6 {[%clk 0:00:35.5]} 52. e3 {[%clk 0:00:22.6]} 52...
Nf6 {[%clk 0:00:36.1]} 53. Bf3 {[%clk 0:00:22.9]} 53... Kg7 {[%clk 0:00:35]} 54.
f5 {[%clk 0:00:22.7]} 54... Kh6 {[%clk 0:00:35]} 55. Kf4 {[%clk 0:00:22.9]}
55... Nd7 {[%clk 0:00:33.9]} 56. Bxd5 {[%clk 0:00:20.9]} 56... Nf6 {[%clk
0:00:33.4]} 57. e4 {[%clk 0:00:20.5]} 57... Nxh5+ {[%clk 0:00:32.8]} 58. Ke5
{[%clk 0:00:20.8]} 58... Kg7 {[%clk 0:00:33.2]} 59. Kd6 {[%clk 0:00:20.5]} 59...
Ng3 {[%clk 0:00:31.5]} 60. b4 {[%clk 0:00:20.6]} 60... Kf6 {[%clk 0:00:31.4]}
61. b5 {[%clk 0:00:20.8]} 61... Nh5 {[%clk 0:00:27.4]} 62. Kc6 {[%clk
0:00:20.7]} 62... Ke5 {[%clk 0:00:27.2]} 63. Kxb6 {[%clk 0:00:20.7]} 63... Kd6
{[%clk 0:00:27.2]} 64. Ka7 {[%clk 0:00:20.2]} 64... Nf6 {[%clk 0:00:25.5]} 65.
b6 {[%clk 0:00:20.4]} 65... Nxd5 {[%clk 0:00:24.6]} 66. exd5 {[%clk 0:00:19.9]}
66... Kxd5 {[%clk 0:00:25.5]} 67. g7 {[%clk 0:00:20]} 67... Ke5 {[%clk
0:00:26.4]} 68. g8=Q {[%clk 0:00:20.1]} 68... Kxf5 {[%clk 0:00:27.3]} 69. b7
{[%clk 0:00:19.9]} 69... Kf6 {[%clk 0:00:26.6]} 70. b8=Q {[%clk 0:00:20]} 70...
Kf5 {[%clk 0:00:27.5]} 71. Qgb3 {[%clk 0:00:19.8]} 71... Ke4 {[%clk 0:00:27.3]}
72. Q8b4+ {[%clk 0:00:19]} 72... Ke5 {[%clk 0:00:27.1]} 73. Qe3+ {[%clk
0:00:18.7]} 73... Kf5 {[%clk 0:00:27.2]} 74. Qec5+ {[%clk 0:00:18.4]} 74... Kg6
{[%clk 0:00:28.1]} 75. Qbb6+ {[%clk 0:00:18.3]} 75... Kf7 {[%clk 0:00:28.7]} 76.
Qcc7+ {[%clk 0:00:18.2]} 76... Ke8 {[%clk 0:00:29.6]} 77. Qbb8# {[%clk
0:00:18.1]} 1-0

[Event "Early-Titled-Tuesday-Blitz-February-20-2024"]
[Site "Chess.com"]
[Date "2024.02.20"]
[Round "11"]
[White "Hudijegszid"]
[Black "mbchess97"]
[Result "0-1"]
[WhiteElo "2374"]
[BlackElo "2493"]
[TimeControl "180+1"]
[EndTime "10:10:00 PST"]
[Termination "mbchess97 won by checkmate"]

1. Nf3 {[%clk 0:03:00.9]} 1... Nf6 {[%clk 0:02:55.6]} 2. g3 {[%clk 0:03:00]}
2... e6 {[%clk 0:02:55]} 3. Bg2 {[%clk 0:03:00.9]} 3... d5 {[%clk 0:02:54.3]} 4.
O-O {[%clk 0:03:01.8]} 4... b5 {[%clk 0:02:54.1]} 5. a4 {[%clk 0:02:59.7]} 5...
b4 {[%clk 0:02:53]} 6. d3 {[%clk 0:02:59.3]} 6... a5 {[%clk 0:02:48.9]} 7. Bf4
{[%clk 0:02:58.7]} 7... Bb7 {[%clk 0:02:46.9]} 8. Nbd2 {[%clk 0:02:58.7]} 8...
Nbd7 {[%clk 0:02:44.7]} 9. e4 {[%clk 0:02:56.2]} 9... dxe4 {[%clk 0:02:33.6]}
10. dxe4 {[%clk 0:02:56.1]} 10... Nxe4 {[%clk 0:02:33.7]} 11. Nxe4 {[%clk
0:02:29.1]} 11... Bxe4 {[%clk 0:02:32.9]} 12. Re1 {[%clk 0:02:29.4]} 12... Bb7
{[%clk 0:02:01.7]} 13. Nd4 {[%clk 0:02:26.7]} 13... Bxg2 {[%clk 0:02:00]} 14.
Kxg2 {[%clk 0:02:26.8]} 14... Ra6 {[%clk 0:01:42.7]} 15. Nb5 {[%clk 0:01:54.3]}
15... Bd6 {[%clk 0:01:35.9]} 16. Bxd6 {[%clk 0:01:53.3]} 16... cxd6 {[%clk
0:01:17.7]} 17. Nxd6+ {[%clk 0:01:53.2]} 17... Ke7 {[%clk 0:01:11.7]} 18. Nf5+
{[%clk 0:01:22.7]} 18... Kf6 {[%clk 0:01:02.8]} 19. Qd4+ {[%clk 0:00:53.3]}
19... e5 {[%clk 0:01:02.8]} 20. Qg4 {[%clk 0:00:46.1]} 20... g6 {[%clk
0:00:45.1]} 21. Ne3 {[%clk 0:00:45.9]} 21... h5 {[%clk 0:00:38.4]} 22. Qf3+
{[%clk 0:00:37.4]} 22... Kg7 {[%clk 0:00:38.3]} 23. Rad1 {[%clk 0:00:37.4]}
23... Qc8 {[%clk 0:00:25.7]} 24. Qd5 {[%clk 0:00:29.2]} 24... Nf6 {[%clk
0:00:21.2]} 25. Qxe5 {[%clk 0:00:28.1]} 25... Qa8+ {[%clk 0:00:18.6]} 26. Nd5
{[%clk 0:00:28]} 26... Re8 {[%clk 0:00:16.6]} 27. Qd4 {[%clk 0:00:10.1]} 27...
Rxe1 {[%clk 0:00:14.6]} 28. Rxe1 {[%clk 0:00:09.7]} 28... Qxd5+ {[%clk
0:00:14.7]} 29. Qxd5 {[%clk 0:00:09.3]} 29... Nxd5 {[%clk 0:00:15.6]} 30. Re5
{[%clk 0:00:09.4]} 30... Nf6 {[%clk 0:00:13.2]} 31. f4 {[%clk 0:00:09.1]} 31...
Rc6 {[%clk 0:00:12.9]} 32. c4 {[%clk 0:00:06.8]} 32... bxc3 {[%clk 0:00:12.7]}
33. bxc3 {[%clk 0:00:07.2]} 33... Rxc3 {[%clk 0:00:12.8]} 34. Rxa5 {[%clk
0:00:08.1]} 34... Ra3 {[%clk 0:00:12.9]} 35. h3 {[%clk 0:00:07.9]} 35... Ne4
{[%clk 0:00:12.9]} 36. g4 {[%clk 0:00:08.3]} 36... hxg4 {[%clk 0:00:12.6]} 37.
hxg4 {[%clk 0:00:09.2]} 37... Rg3+ {[%clk 0:00:12.7]} 38. Kf1 {[%clk 0:00:08.5]}
38... Rxg4 {[%clk 0:00:13]} 39. Ke2 {[%clk 0:00:08.5]} 39... Rxf4 {[%clk
0:00:12.7]} 40. Ke3 {[%clk 0:00:09.1]} 40... Rh4 {[%clk 0:00:12.9]} 41. Ra8
{[%clk 0:00:09.8]} 41... Nd6 {[%clk 0:00:12.1]} 42. a5 {[%clk 0:00:10]} 42...
Nc4+ {[%clk 0:00:12.3]} 43. Kd3 {[%clk 0:00:09.9]} 43... Nxa5 {[%clk 0:00:11.5]}
44. Rxa5 {[%clk 0:00:09.6]} 44... Rf4 {[%clk 0:00:11.6]} 45. Ke3 {[%clk
0:00:10.2]} 45... Rf6 {[%clk 0:00:10.1]} 46. Ke2 {[%clk 0:00:09.9]} 46... Re6+
{[%clk 0:00:10.3]} 47. Kf2 {[%clk 0:00:09.8]} 47... Kf6 {[%clk 0:00:10.6]} 48.
Ra4 {[%clk 0:00:10.1]} 48... g5 {[%clk 0:00:10.7]} 49. Ra5 {[%clk 0:00:10.4]}
49... Kg6 {[%clk 0:00:10.9]} 50. Kf3 {[%clk 0:00:10.8]} 50... f5 {[%clk
0:00:11.2]} 51. Rb5 {[%clk 0:00:10.7]} 51... Rc6 {[%clk 0:00:11.3]} 52. Rb3
{[%clk 0:00:09.6]} 52... g4+ {[%clk 0:00:10.9]} 53. Kf4 {[%clk 0:00:09.5]} 53...
Rc4+ {[%clk 0:00:10.7]} 54. Kg3 {[%clk 0:00:07.8]} 54... Kg5 {[%clk 0:00:10.6]}
55. Rb2 {[%clk 0:00:05.3]} 55... f4+ {[%clk 0:00:10.8]} 56. Kg2 {[%clk 0:00:06]}
56... Rc5 {[%clk 0:00:10.3]} 57. Kf2 {[%clk 0:00:06]} 57... g3+ {[%clk
0:00:10.1]} 58. Kf3 {[%clk 0:00:05.3]} 58... Rc3+ {[%clk 0:00:10.3]} 59. Kg2
{[%clk 0:00:05.8]} 59... Kg4 {[%clk 0:00:10.5]} 60. Rb1 {[%clk 0:00:06.6]} 60...
f3+ {[%clk 0:00:10.3]} 61. Kg1 {[%clk 0:00:07.3]} 61... Rc4 {[%clk 0:00:09.5]}
62. Ra1 {[%clk 0:00:07.3]} 62... g2 {[%clk 0:00:08.9]} 63. Rb1 {[%clk
0:00:07.2]} 63... Kg3 {[%clk 0:00:07.6]} 64. Rc1 {[%clk 0:00:06]} 64... f2#
{[%clk 0:00:07.6]} 0-1